bitfinex-derivatives/quotes_BTCF0:USTF0_20250514
["timestamp","ask_amount","ask_price","bid_price","bid_amount"]
[1747208301689,1.13996752,103580.0,103570.0,0.09755771]
[1747208301888,1.25932346,103580.0,103570.0,0.09755771]
[1747208302086,1.42132346,103580.0,103570.0,0.09755771]
[1747208302292,1.78212346,103580.0,103570.0,0.29065411]
[1747208302591,1.78212346,103580.0,103570.0,0.09755771]
[1747208302786,1.78212346,103580.0,103570.0,0.29065411]
[1747208302983,1.78212346,103580.0,103570.0,0.09755771]
[1747208303193,1.78212346,103580.0,103570.0,0.001]
[1747208303786,0.193115,103560.0,103550.0,0.2724031]
[1747208303989,1.004515,103560.0,103550.0,0.3916858]
[1747208304192,1.228315,103560.0,103550.0,0.3916858]
[1747208304391,1.228315,103560.0,103550.0,0.48823419]
[1747208305092,1.229315,103560.0,103550.0,0.49323419]
[1747208305287,1.229315,103560.0,103550.0,0.20254839]
[1747208305494,1.72867094,103560.0,103550.0,0.29468209]
[1747208305685,1.003995,103560.0,103550.0,0.29568209]
[1747208305883,1.265635,103560.0,103550.0,0.32368209]
[1747208306084,1.104635,103560.0,103550.0,0.32368209]
[1747208306593,1.104515,103560.0,103550.0,0.42488209]
[1747208306792,0.745715,103560.0,103550.0,0.78568209]
[1747208307290,0.745715,103560.0,103550.0,0.42488209]
[1747208307485,0.745715,103560.0,103550.0,0.78568209]
[1747208308094,0.745715,103560.0,103550.0,0.7913028]
[1747208308894,0.745715,103560.0,103550.0,0.91065874]
[1747208308895,0.58648973,103560.0,103550.0,0.91065874]
[1747208309090,0.81856973,103560.0,103550.0,0.90503803]
[1747208309289,0.39337473,103560.0,103550.0,0.90503803]
[1747208309489,0.56387473,103560.0,103550.0,0.93803803]
[1747208309693,0.59657473,103560.0,103550.0,0.93803803]
[1747208309899,0.78968973,103560.0,103550.0,0.93803803]
[1747208310199,0.59657473,103560.0,103550.0,1.10003803]
[1747208310497,0.33191473,103560.0,103550.0,1.10003803]
[1747208313298,0.25862,103560.0,103550.0,1.10003803]
[1747208314496,0.22832,103560.0,103550.0,1.10003803]
[1747208314794,0.003,103560.0,103550.0,1.31596197]
[1747208314994,0.003,103560.0,103550.0,3.06596197]
[1747208315303,0.003,103560.0,103550.0,2.93350674]
[1747208315801,0.003,103560.0,103550.0,3.06734268]
[1747208316385,1e-07,103560.0,103550.0,3.06734268]
[1747208316586,0.08287944,103570.0,103560.0,0.194115]
[1747208316894,0.12215789,103580.0,103570.0,0.1930964]
[1747208317090,0.08183979,103580.0,103570.0,1.06867234]
[1747208317299,5e-08,103590.0,103580.0,0.1940777]
[1747208317494,5e-08,103590.0,103580.0,0.92388958]
[1747208317802,0.22620344,103600.0,103590.0,0.1940591]
[1747208317994,0.3478746,103600.0,103590.0,0.95687098]
[1747208318302,0.3478746,103600.0,103590.0,1.11887098]
[1747208318490,0.14664326,103600.0,103590.0,2.47669817]
[1747208318892,0.14664326,103600.0,103590.0,2.59605411]
[1747208319094,0.14664326,103600.0,103590.0,2.71541005]
[1747208319601,0.14664326,103600.0,103590.0,2.71641005]
[1747208319999,0.14664326,103600.0,103590.0,2.59705411]
[1747208320197,0.14664326,103600.0,103590.0,2.55441005]
[1747208320602,0.14664326,103600.0,103590.0,2.43505411]
[1747208320800,0.24414326,103600.0,103590.0,2.43505411]
[1747208320988,0.24414326,103600.0,103590.0,2.43705411]
[1747208321403,0.21124326,103600.0,103590.0,2.43705411]
[1747208321702,0.14664326,103600.0,103590.0,2.43705411]
[1747208322093,0.14664326,103600.0,103590.0,2.55641005]
[1747208322292,0.0655,103610.0,103600.0,0.1930405]
[1747208322595,0.0655,103610.0,103600.0,0.80659644]
[1747208322897,0.0655,103610.0,103600.0,0.90312619]
[1747208323306,0.0675,103610.0,103600.0,0.90312619]
[1747208325497,0.0675,103610.0,103600.0,0.90212619]
[1747208325701,0.0675,103610.0,103600.0,0.90312619]
[1747208325702,0.002,103610.0,103600.0,0.90312619]
[1747208327199,0.002,103610.0,103600.0,1.06512619]
[1747208328096,0.002,103610.0,103600.0,0.94577025]
[1747208328299,0.002,103610.0,103600.0,1.06512619]
[1747208329104,0.002,103610.0,103600.0,0.90312619]
[1747208330201,0.002,103610.0,103600.0,1.06512619]
[1747208332501,0.002,103610.0,103600.0,0.94577025]
[1747208332707,0.002,103610.0,103600.0,1.06512619]
[1747208333207,0.002,103610.0,103600.0,0.90312619]
[1747208335302,0.032,103610.0,103600.0,0.90312619]
[1747208335501,0.0953,103610.0,103600.0,0.90312619]
[1747208339511,0.0953,103610.0,103600.0,0.91759619]
[1747208340708,0.0953,103610.0,103600.0,0.79824025]
[1747208340909,0.0953,103610.0,103600.0,0.91759619]
[1747208342311,0.0953,103610.0,103600.0,0.91659619]
[1747208342514,0.0953,103610.0,103600.0,0.91759619]
[1747208343516,0.0953,103610.0,103600.0,0.88669619]
[1747208344515,0.21465594,103610.0,103600.0,0.76634025]
[1747208344817,0.63587774,103610.0,103600.0,0.37404025]
[1747208345115,0.44285594,103610.0,103600.0,0.37404025]
[1747208345319,0.79787774,103610.0,103600.0,0.37404025]
[1747208345614,0.6785218,103610.0,103600.0,0.37404025]
[1747208345915,0.49112071,103610.0,103600.0,0.37404025]
[1747208349019,0.49112071,103610.0,103600.0,0.40704025]
[1747208351309,0.68414251,103610.0,103600.0,0.37404025]
[1747208351507,1.30429845,103610.0,103600.0,0.37404025]
[1747208352014,1.30429845,103610.0,103600.0,0.30404025]
[1747208352608,0.99192071,103610.0,103600.0,0.33524025]
[1747208352814,0.9863,103610.0,103600.0,0.33524025]
[1747208353214,0.6255,103610.0,103600.0,0.33524025]
[1747208354328,0.7877678,103610.0,103600.0,0.33524025]
[1747208355323,1.0077678,103610.0,103600.0,0.33524025]
[1747208355922,1.01338851,103610.0,103600.0,0.33524025]
[1747208356123,0.75338851,103610.0,103600.0,0.33524025]
[1747208357128,0.7477678,103610.0,103600.0,0.33524025]
[1747208357328,0.9977678,103610.0,103600.0,0.33524025]
[1747208357626,0.7277678,103610.0,103600.0,0.33524025]
[1747208357927,0.5655,103610.0,103600.0,0.33524025]
[1747208358128,0.4879,103610.0,103600.0,0.88639619]
[1747208358323,0.71402,103610.0,103600.0,0.91829619]
[1747208358515,0.71394,103610.0,103600.0,0.91829619]
[1747208358721,0.71398,103610.0,103600.0,0.91829619]
[1747208359131,0.55198,103610.0,103600.0,0.91829619]
[1747208359329,0.55198,103610.0,103600.0,0.91729619]
[1747208359526,0.55198,103610.0,103600.0,0.91829619]
[1747208360823,0.55198,103610.0,103600.0,0.79894025]
[1747208361024,0.55198,103610.0,103600.0,0.91829619]
[1747208362124,0.55198,103610.0,103600.0,0.79894025]
[1747208362435,0.55198,103610.0,103600.0,0.91829619]
[1747208364341,0.48868,103610.0,103600.0,0.91829619]
[1747208365128,0.52098,103610.0,103600.0,0.91829619]
[1747208366531,0.2949,103610.0,103600.0,0.91829619]
[1747208366736,0.2626,103610.0,103600.0,0.91829619]
[1747208367837,0.2626,103610.0,103600.0,2.41829619]
[1747208368034,0.2944,103610.0,103600.0,2.41829619]
[1747208369542,0.2326,103610.0,103600.0,2.41829619]
[1747208369738,0.00144846,103620.0,103610.0,0.1930218]
[1747208369930,0.44230974,103630.0,103620.0,0.1930032]
[1747208370136,0.44230974,103630.0,103620.0,0.6886032]
[1747208370342,0.44230974,103630.0,103620.0,0.78512363]
[1747208371128,0.44630974,103630.0,103620.0,0.78612363]
[1747208371847,0.44630974,103630.0,103620.0,0.78712363]
[1747208372138,0.45130974,103630.0,103620.0,0.90747957]
[1747208372534,0.35700974,103630.0,103620.0,0.90747957]
[1747208373139,0.35700974,103630.0,103620.0,1.06947957]
[1747208373441,0.35700974,103630.0,103620.0,2.56947957]
[1747208373634,0.35300974,103630.0,103620.0,2.56847957]
[1747208374835,0.35100974,103630.0,103620.0,2.56747957]
[1747208375038,0.22864,103630.0,103620.0,2.56747957]
[1747208375233,0.22864,103630.0,103620.0,2.40547957]
[1747208375633,0.22664,103630.0,103620.0,2.40547957]
[1747208377647,0.001,103630.0,103620.0,2.52483551]
[1747208377946,1e-07,103630.0,103620.0,2.52483551]
[1747208378248,1e-07,103630.0,103620.0,2.68683551]
[1747208379250,1e-07,103630.0,103620.0,2.69245622]
[1747208379543,0.12436974,103640.0,103630.0,0.1929846]
[1747208379744,0.12436974,103640.0,103630.0,0.83714054]
[1747208380138,0.002,103640.0,103630.0,0.93363303]
[1747208380538,0.002,103640.0,103630.0,0.81427709]
[1747208380737,0.002,103640.0,103630.0,0.93363303]
[1747208380936,0.003,103640.0,103630.0,0.93363303]
[1747208381143,0.004,103640.0,103630.0,0.93363303]
[1747208381947,0.003,103640.0,103630.0,0.81527709]
[1747208382137,0.003,103640.0,103630.0,0.97727709]
[1747208382337,0.002,103640.0,103630.0,1.09663303]
[1747208382533,0.002,103640.0,103630.0,0.97827709]
[1747208382736,0.002,103640.0,103630.0,1.09763303]
[1747208383444,0.002,103640.0,103630.0,1.09663303]
[1747208383639,0.003,103640.0,103630.0,1.09663303]
[1747208384042,0.0663,103640.0,103630.0,1.09663303]
[1747208384352,0.0663,103640.0,103630.0,0.93463303]
[1747208384648,0.0663,103640.0,103630.0,0.81527709]
[1747208384946,0.0663,103640.0,103630.0,0.93563303]
[1747208384947,0.0653,103640.0,103630.0,0.93563303]
[1747208385850,0.0653,103640.0,103630.0,0.81627709]
[1747208386045,0.0653,103640.0,103630.0,0.93563303]
[1747208386347,0.0653,103640.0,103630.0,1.09763303]
[1747208386545,0.0653,103640.0,103630.0,0.97827709]
[1747208386741,0.0653,103640.0,103630.0,1.09763303]
[1747208387150,0.0653,103640.0,103630.0,0.93563303]
[1747208387337,0.0653,103640.0,103630.0,0.95033959]
[1747208387744,0.0653,103640.0,103630.0,0.93563303]
[1747208389948,0.0653,103640.0,103630.0,0.93463303]
[1747208390147,0.0663,103640.0,103630.0,0.93363303]
[1747208390351,0.0673,103640.0,103630.0,0.93363303]
[1747208392435,0.0673,103640.0,103630.0,0.94787719]
[1747208395350,0.0673,103640.0,103630.0,0.90676486]
[1747208395550,0.0997,103640.0,103630.0,0.90676486]
[1747208400351,0.0997,103640.0,103630.0,0.79642125]
[1747208400551,0.0997,103640.0,103630.0,0.76592125]
[1747208400746,0.10532071,103640.0,103630.0,0.76592125]
[1747208401152,0.26732071,103640.0,103630.0,0.84416486]
[1747208401550,0.26732071,103640.0,103630.0,0.87456486]
[1747208402050,0.26732071,103640.0,103630.0,0.90616486]
[1747208402257,0.26732071,103640.0,103630.0,0.82792125]
[1747208402258,0.10532071,103640.0,103630.0,0.82792125]
[1747208402451,0.10532071,103640.0,103630.0,0.90616486]
[1747208403757,0.0997,103640.0,103630.0,0.84416486]
[1747208404861,0.10532071,103640.0,103630.0,0.84416486]
[1747208405251,0.26732071,103640.0,103630.0,0.88515609]
[1747208405557,0.26732071,103640.0,103630.0,0.91815609]
[1747208405759,0.2617,103640.0,103630.0,0.95045609]
[1747208406149,0.0997,103640.0,103630.0,0.95045609]
[1747208408852,0.10532071,103640.0,103630.0,0.95045609]
[1747208409756,0.0997,103640.0,103630.0,0.95045609]
[1747208412463,0.0685,103640.0,103630.0,0.95045609]
[1747208412863,0.0685,103640.0,103630.0,0.94945609]
[1747208413161,0.0685,103640.0,103630.0,0.95045609]
[1747208413954,0.0685,103640.0,103630.0,1.17577609]
[1747208414957,0.004,103640.0,103630.0,1.17577609]
[1747208416365,0.0662,103640.0,103630.0,1.17677609]
[1747208416662,0.0652,103640.0,103630.0,1.17777609]
[1747208416861,0.0338,103640.0,103630.0,1.17777609]
[1747208417065,0.002,103640.0,103630.0,1.17777609]
[1747208417254,0.002,103640.0,103630.0,1.33977609]
[1747208418164,0.002,103640.0,103630.0,1.17777609]
[1747208419157,0.0336,103640.0,103630.0,1.17777609]
[1747208419671,0.0975,103640.0,103630.0,1.17777609]
[1747208422770,0.0975,103640.0,103630.0,1.05854125]
[1747208423063,0.10312071,103640.0,103630.0,1.17777609]
[1747208423966,0.10312071,103640.0,103630.0,0.95245609]
[1747208424165,0.10312071,103640.0,103630.0,0.80092125]
[1747208424467,0.10312071,103640.0,103630.0,0.76792125]
[1747208424674,0.10312071,103640.0,103630.0,0.75267709]
[1747208425063,0.26512071,103640.0,103630.0,0.76714709]
[1747208425276,0.26512071,103640.0,103630.0,0.8453993]
[1747208426563,0.26512071,103640.0,103630.0,0.8777993]
[1747208427173,0.2595,103640.0,103630.0,0.8777993]
[1747208428070,0.26512071,103640.0,103630.0,0.8777993]
[1747208428371,0.10312071,103640.0,103630.0,0.8787993]
[1747208429373,0.26512071,103640.0,103630.0,0.8787993]
[1747208430763,0.26512071,103640.0,103630.0,0.9109993]
[1747208431172,0.2595,103640.0,103630.0,0.9109993]
[1747208433874,0.2595,103640.0,103630.0,2.4109993]
[1747208434172,0.26512071,103640.0,103630.0,2.4109993]
[1747208435077,0.26512071,103640.0,103630.0,2.0501993]
[1747208435278,0.26512071,103640.0,103630.0,2.4109993]
[1747208436178,0.2595,103640.0,103630.0,2.4109993]
[1747208436767,0.35727125,103640.0,103630.0,2.33274709]
[1747208436967,0.35727125,103640.0,103630.0,2.4109993]
[1747208437671,0.35727125,103640.0,103630.0,2.3787993]
[1747208437877,0.35727125,103640.0,103630.0,2.3463993]
[1747208439367,0.36289196,103640.0,103630.0,2.3463993]
[1747208440281,0.43642967,103640.0,103630.0,2.3463993]
[1747208440580,0.43642967,103640.0,103630.0,2.26814709]
[1747208443178,0.43642967,103640.0,103630.0,2.3463993]
[1747208443381,0.43080896,103640.0,103630.0,2.3792993]
[1747208444883,0.43080896,103640.0,103630.0,2.30104709]
[1747208445179,0.43080896,103640.0,103630.0,2.3792993]
[1747208445385,0.35727125,103640.0,103630.0,2.3792993]
[1747208448382,0.36289196,103640.0,103630.0,2.3792993]
[1747208449479,0.35727125,103640.0,103630.0,2.3792993]
[1747208452782,0.35727125,103640.0,103630.0,2.4104993]
[1747208454087,0.19527125,103640.0,103630.0,2.4104993]
[1747208460090,0.35727125,103640.0,103630.0,2.33224709]
[1747208460296,0.35727125,103640.0,103630.0,2.3792993]
[1747208460490,0.35727125,103640.0,103630.0,2.30104709]
[1747208460689,0.36289196,103640.0,103630.0,2.3792993]
[1747208461005,0.65114417,103640.0,103630.0,0.76714709]
[1747208461195,0.57289196,103640.0,103630.0,0.8453993]
[1747208461591,0.56727125,103640.0,103630.0,0.8453993]
[1747208462203,0.58195125,103640.0,103630.0,0.8453993]
[1747208462404,0.58195125,103640.0,103630.0,0.9104993]
[1747208463204,0.41995125,103640.0,103630.0,0.9104993]
[1747208466308,0.41995125,103640.0,103630.0,0.83224709]
[1747208466508,0.54232099,103640.0,103630.0,0.9104993]
[1747208466706,0.54232099,103640.0,103630.0,0.83224709]
[1747208466906,0.54232099,103640.0,103630.0,0.9104993]
[1747208467106,0.70432099,103640.0,103630.0,0.9104993]
[1747208467715,0.70432099,103640.0,103630.0,0.83224709]
[1747208467914,0.70432099,103640.0,103630.0,0.9104993]
[1747208468109,0.70432099,103640.0,103630.0,0.83224709]
[1747208468416,0.70632099,103640.0,103630.0,0.9084993]
[1747208468614,0.70932099,103640.0,103630.0,0.9084993]
[1747208468806,0.70932099,103640.0,103630.0,0.83024709]
[1747208469007,0.70932099,103640.0,103630.0,0.9084993]
[1747208469306,0.54732099,103640.0,103630.0,0.9084993]
[1747208469714,0.42495125,103640.0,103630.0,0.9084993]
[1747208470213,0.58695125,103640.0,103630.0,0.9084993]
[1747208470411,0.58695125,103640.0,103630.0,0.9094993]
[1747208473210,0.42495125,103640.0,103630.0,0.83124709]
[1747208473410,0.42495125,103640.0,103630.0,0.9094993]
[1747208474116,0.58695125,103640.0,103630.0,0.9094993]
[1747208476821,0.59257196,103640.0,103630.0,0.9094993]
[1747208479814,0.59257196,103640.0,103630.0,0.83124709]
[1747208480013,0.59257196,103640.0,103630.0,0.9094993]
[1747208483020,0.58695125,103640.0,103630.0,0.9094993]
[1747208484322,0.42495125,103640.0,103630.0,0.9094993]
[1747208486023,0.32718,103640.0,103630.0,0.9094993]
[1747208486222,0.48918,103640.0,103630.0,0.9094993]
[1747208487527,0.48918,103640.0,103630.0,0.5486993]
[1747208487727,0.48918,103640.0,103630.0,0.9094993]
[1747208488216,0.55146,103640.0,103630.0,0.9094993]
[1747208489827,0.64953367,103640.0,103630.0,0.9094993]
[1747208490421,0.64953367,103640.0,103630.0,0.83124709]
[1747208490624,0.64953367,103640.0,103630.0,0.9094993]
[1747208491227,0.81153367,103640.0,103630.0,0.9094993]
[1747208492128,0.81715438,103640.0,103630.0,0.9094993]
[1747208493236,0.81153367,103640.0,103630.0,0.9094993]
[1747208493726,0.71393469,103640.0,103630.0,0.9094993]
[1747208495425,0.71393469,103640.0,103630.0,0.5486993]
[1747208495625,0.71393469,103640.0,103630.0,0.9094993]
[1747208498232,0.67405208,103640.0,103630.0,0.9094993]
[1747208499435,0.67405208,103640.0,103630.0,0.5486993]
[1747208499634,0.67405208,103640.0,103630.0,0.9094993]
[1747208500235,0.84167279,103640.0,103630.0,0.9094993]
[1747208501128,0.67967279,103640.0,103630.0,0.9094993]
[1747208501326,0.67405208,103640.0,103630.0,0.9094993]
[1747208505736,0.67405208,103640.0,103630.0,0.5486993]
[1747208505937,0.67405208,103640.0,103630.0,0.9094993]
[1747208507045,0.55146,103640.0,103630.0,0.9094993]
[1747208507436,0.55146,103640.0,103630.0,0.79854709]
[1747208508244,0.71346,103640.0,103630.0,0.79854709]
[1747208508449,0.71908071,103640.0,103630.0,0.79854709]
[1747208509248,0.71908071,103640.0,103630.0,0.84196709]
[1747208511251,0.71908071,103640.0,103630.0,0.44876709]
[1747208511252,0.82733292,103640.0,103630.0,0.44876709]
[1747208511750,0.74908071,103640.0,103630.0,0.44876709]
[1747208511946,0.71908071,103640.0,103630.0,0.44876709]
[1747208516046,0.71908071,103640.0,103630.0,0.80956709]
[1747208516252,0.71908071,103640.0,103630.0,0.44876709]
[1747208516553,0.71346,103640.0,103630.0,0.44876709]
[1747208517252,0.87593601,103640.0,103630.0,0.44876709]
[1747208517751,0.87593601,103640.0,103630.0,0.80956709]
[1747208518246,0.87593601,103640.0,103630.0,0.44876709]
[1747208518746,0.87593601,103640.0,103630.0,0.80956709]
[1747208519054,0.87593601,103640.0,103630.0,0.44876709]
[1747208519551,0.88155672,103640.0,103630.0,0.44876709]
[1747208519747,0.88155672,103640.0,103630.0,0.80956709]
[1747208519953,0.88155672,103640.0,103630.0,0.44876709]
[1747208520254,0.88155672,103640.0,103630.0,0.80956709]
[1747208520553,0.87593601,103640.0,103630.0,0.80956709]
[1747208521552,0.88155672,103640.0,103630.0,0.80956709]
[1747208524456,0.88155672,103640.0,103630.0,0.8878193]
[1747208524656,0.87593601,103640.0,103630.0,0.80956709]
[1747208524852,0.87593601,103640.0,103630.0,0.84156709]
[1747208525750,0.88155672,103640.0,103630.0,0.84156709]
[1747208526751,0.71908071,103640.0,103630.0,0.84156709]
[1747208526948,0.86733292,103640.0,103630.0,0.80956709]
[1747208527157,1.03733292,103640.0,103630.0,0.80956709]
[1747208527357,0.79733292,103640.0,103630.0,0.80956709]
[1747208527659,0.79171221,103640.0,103630.0,0.80956709]
[1747208528161,0.71346,103640.0,103630.0,0.80956709]
[1747208528662,0.906426,103640.0,103630.0,0.80956709]
[1747208528857,0.71346,103640.0,103630.0,0.80956709]
[1747208530260,0.83605208,103640.0,103630.0,0.80956709]
[1747208530858,0.84167279,103640.0,103630.0,0.80956709]
[1747208533662,1.03463879,103640.0,103630.0,0.44776709]
[1747208533862,2.04678321,103640.0,103630.0,0.05789]
[1747208534058,2.49382321,103640.0,103630.0,0.05789]
[1747208534261,2.53370673,103640.0,103630.0,0.2508746]
[1747208534464,2.53370673,103640.0,103630.0,0.34736709]
[1747208534763,2.44983381,103640.0,103630.0,0.37776709]
[1747208536765,2.52808602,103640.0,103630.0,0.37776709]
[1747208536964,2.52808602,103640.0,103630.0,0.2508746]
[1747208537164,2.62457802,103640.0,103630.0,0.2508746]
[1747208539177,2.54632581,103640.0,103630.0,0.2827746]
[1747208539365,1.9552556,103640.0,103630.0,0.38026709]
[1747208539565,2.1714616,103640.0,103630.0,0.51336709]
[1747208539765,1.6176956,103640.0,103630.0,0.87416709]
[1747208540064,1.6176956,103640.0,103630.0,0.8797878]
[1747208540373,1.6486616,103640.0,103630.0,0.8797878]
[1747208540870,1.6486616,103640.0,103630.0,0.87416709]
[1747208541572,2.08771381,103640.0,103630.0,0.48086709]
[1747208541966,2.09333452,103640.0,103630.0,0.48086709]
[1747208542772,1.23807631,103640.0,103630.0,0.48086709]
[1747208542966,1.43104231,103640.0,103630.0,0.51166709]
[1747208543272,1.36655104,103640.0,103630.0,0.51166709]
[1747208544070,1.36093033,103640.0,103630.0,0.51166709]
[1747208544977,1.36655104,103640.0,103630.0,0.51166709]
[1747208545978,1.36093033,103640.0,103630.0,0.51166709]
[1747208547774,1.16796433,103640.0,103630.0,0.51166709]
[1747208548472,1.36093033,103640.0,103630.0,0.51166709]
[1747208549369,0.15498433,103640.0,103630.0,0.51166709]
[1747208549569,0.10498433,103640.0,103630.0,0.9507193]
[1747208549769,0.10498433,103640.0,103630.0,2.4507193]
[1747208550166,0.10498433,103640.0,103630.0,2.6127193]
[1747208550661,0.10198433,103640.0,103630.0,2.6127193]
[1747208550874,0.10298433,103640.0,103630.0,2.6127193]
[1747208551872,0.10098433,103640.0,103630.0,2.6127193]
[1747208552073,0.10198433,103640.0,103630.0,2.6127193]
[1747208553181,0.0774941,103640.0,103630.0,2.6127193]
[1747208553570,0.0774941,103640.0,103630.0,2.62248766]
[1747208554876,0.0774941,103640.0,103630.0,2.6372188]
[1747208558080,0.004,103640.0,103630.0,2.6372188]
[1747208560085,0.004,103640.0,103630.0,2.62745044]
[1747208560290,0.004,103640.0,103630.0,2.46545044]
[1747208561676,0.004,103640.0,103630.0,2.4749846]
[1747208561987,0.004,103640.0,103630.0,2.46545044]
[1747208566395,0.004,103640.0,103630.0,2.4752389]
[1747208568092,0.004,103640.0,103630.0,2.6372389]
[1747208571297,0.004,103640.0,103630.0,2.4752389]
[1747208572391,0.0346,103640.0,103630.0,2.4752389]
[1747208572592,0.0649,103640.0,103630.0,2.4752389]
[1747208573588,0.096,103640.0,103630.0,2.4752389]
[1747208574293,0.096,103640.0,103630.0,2.39698669]
[1747208574594,0.096,103640.0,103630.0,2.4752389]
[1747208575394,0.10162071,103640.0,103630.0,2.4752389]
[1747208576395,0.096,103640.0,103630.0,2.4752389]
[1747208581482,0.096,103640.0,103630.0,2.39698669]
[1747208581689,0.096,103640.0,103630.0,2.4752389]
[1747208582396,0.096,103640.0,103630.0,2.46545044]
[1747208582598,0.1694941,103640.0,103630.0,2.46545044]
[1747208584703,0.1694941,103640.0,103630.0,2.38719823]
[1747208585002,0.1694941,103640.0,103630.0,2.46545044]
[1747208586295,0.1694941,103640.0,103630.0,2.46445044]
[1747208586495,0.1694941,103640.0,103630.0,2.46545044]
[1747208589300,0.1694941,103640.0,103630.0,2.46445044]
[1747208589607,0.26747843,103640.0,103630.0,2.46545044]
[1747208591205,0.17547843,103640.0,103630.0,2.76586265]
[1747208591601,0.17547843,103640.0,103630.0,2.68761044]
[1747208591806,0.17547843,103640.0,103630.0,2.76586265]
[1747208592110,0.17547843,103640.0,103630.0,2.84961044]
[1747208592601,0.17447843,103640.0,103630.0,2.84961044]
[1747208592800,0.17447843,103640.0,103630.0,2.85061044]
[1747208593000,0.17347843,103640.0,103630.0,2.85061044]
[1747208593205,0.17347843,103640.0,103630.0,2.85161044]
[1747208594097,0.0754941,103640.0,103630.0,2.85161044]
[1747208595908,0.0754941,103640.0,103630.0,2.92986265]
[1747208596708,0.0754941,103640.0,103630.0,2.85161044]
[1747208597210,0.0754941,103640.0,103630.0,2.92986265]
[1747208597913,0.0754941,103640.0,103630.0,3.15222265]
[1747208598808,0.0754941,103640.0,103630.0,3.07397044]
[1747208600103,0.0754941,103640.0,103630.0,2.91197044]
[1747208601200,0.0754941,103640.0,103630.0,3.07397044]
[1747208605313,0.0754941,103640.0,103630.0,2.99571823]
[1747208605610,0.0754941,103640.0,103630.0,3.07397044]
[1747208606908,0.19038433,103650.0,103640.0,0.192966]
[1747208607212,0.19038433,103650.0,103640.0,0.87447042]
[1747208607515,0.19038433,103650.0,103640.0,2.31445849]
[1747208607720,0.19038433,103650.0,103640.0,2.47096291]
[1747208607909,0.19038433,103650.0,103640.0,2.51437291]
[1747208608221,0.19138433,103650.0,103640.0,2.51437291]
[1747208608713,0.19138433,103650.0,103640.0,2.4361207]
[1747208609107,0.19238433,103650.0,103640.0,2.4361207]
[1747208609307,0.19238433,103650.0,103640.0,2.6580007]
[1747208609905,0.19238433,103650.0,103640.0,2.6724707]
[1747208611417,0.0944,103650.0,103640.0,2.6724707]
[1747208611916,0.0934,103650.0,103640.0,2.6724707]
[1747208612116,0.0924,103650.0,103640.0,2.6734707]
[1747208612416,0.0924,103650.0,103640.0,2.6744707]
[1747208612618,0.001,103660.0,103650.0,0.1929474]
[1747208612811,0.0641,103660.0,103650.0,0.79729961]
[1747208613014,0.0959,103660.0,103650.0,0.79729961]
[1747208613204,0.0959,103660.0,103650.0,2.55578279]
[1747208613917,0.0969,103660.0,103650.0,2.55578279]
[1747208614118,0.0979,103660.0,103650.0,2.55578279]
[1747208615120,0.0979,103660.0,103650.0,2.39378279]
[1747208615718,0.0335,103660.0,103650.0,2.39378279]
[1747208615911,0.0325,103660.0,103650.0,2.39478279]
[1747208616106,0.0325,103660.0,103650.0,2.77862279]
[1747208616921,0.0315,103660.0,103650.0,2.77962279]
[1747208617124,0.0624,103660.0,103650.0,2.77962279]
[1747208619309,0.0624,103660.0,103650.0,2.77862279]
[1747208619514,0.0624,103660.0,103650.0,2.77962279]
[1747208619925,0.0315,103660.0,103650.0,2.77962279]
[1747208620824,0.0641,103660.0,103650.0,2.77962279]
[1747208621023,0.0957,103660.0,103650.0,2.77962279]
[1747208622421,0.0316,103660.0,103650.0,2.77962279]
[1747208626227,0.0622,103660.0,103650.0,2.92297058]
[1747208626415,0.0926,103660.0,103650.0,3.00122279]
[1747208628830,0.09998433,103680.0,103670.0,0.1929101]
[1747208629029,0.09998433,103680.0,103670.0,1.06276231]
[1747208629329,0.09998433,103680.0,103670.0,1.28956231]
[1747208629530,0.09998433,103680.0,103670.0,1.41743618]
[1747208629724,0.09998433,103680.0,103670.0,2.91743618]
[1747208630231,0.10498433,103680.0,103670.0,2.75543618]
[1747208630836,0.10498433,103680.0,103670.0,2.97803618]
[1747208631139,0.26498433,103680.0,103670.0,2.97803618]
[1747208631833,0.26298433,103680.0,103670.0,2.97803618]
[1747208632033,0.26398433,103680.0,103670.0,2.97803618]
[1747208632435,0.26198433,103680.0,103670.0,2.97903618]
[1747208632632,0.26198433,103680.0,103670.0,2.98003618]
[1747208633033,0.164,103680.0,103670.0,2.91138441]
[1747208633236,0.164,103680.0,103670.0,3.21143662]
[1747208635739,0.164,103680.0,103670.0,3.25483662]
[1747208638345,0.1953,103680.0,103670.0,3.25483662]
[1747208638647,0.2273,103680.0,103670.0,3.25483662]
[1747208638851,0.2606,103680.0,103670.0,3.25483662]
[1747208640454,0.2606,103680.0,103670.0,3.17658441]
[1747208640656,0.2606,103680.0,103670.0,3.25483662]
[1747208643958,0.2606,103680.0,103670.0,3.24523618]
[1747208644459,0.26622071,103680.0,103670.0,3.24523618]
[1747208644659,0.26622071,103680.0,103670.0,3.16698397]
[1747208644955,0.26622071,103680.0,103670.0,3.25494289]
[1747208645256,0.26622071,103680.0,103670.0,3.24523618]
[1747208646650,0.26622071,103680.0,103670.0,3.25969618]
[1747208652866,0.20292071,103680.0,103670.0,3.25969618]
[1747208653167,0.16962071,103680.0,103670.0,3.25969618]
[1747208655454,0.13760421,103680.0,103670.0,3.33794839]
[1747208655659,0.1319835,103680.0,103670.0,3.33794839]
[1747208655857,0.0640042,103680.0,103670.0,3.33794839]
[1747208656169,0.0640042,103680.0,103670.0,2.70564397]
[1747208656360,0.1577042,103680.0,103670.0,2.78389618]
[1747208656560,0.1577042,103680.0,103670.0,2.81609618]
[1747208656762,0.16332491,103680.0,103670.0,2.81609618]
[1747208656960,0.16332491,103680.0,103670.0,2.81809618]
[1747208657170,0.16332491,103680.0,103670.0,2.81909618]
[1747208657472,0.06962491,103680.0,103670.0,2.81909618]
[1747208657665,0.06962491,103680.0,103670.0,2.81609618]
[1747208660971,0.06962491,103680.0,103670.0,2.73784397]
[1747208661174,0.06962491,103680.0,103670.0,2.81609618]
[1747208662780,0.06962491,103680.0,103670.0,2.89434839]
[1747208663472,0.06962491,103680.0,103670.0,2.81609618]
[1747208665880,0.06962491,103680.0,103670.0,2.89434839]
[1747208667685,0.06962491,103680.0,103670.0,2.81609618]
[1747208668084,0.06962491,103680.0,103670.0,2.89434839]
[1747208671193,0.06962491,103680.0,103670.0,2.81609618]
[1747208672893,0.06962491,103680.0,103670.0,3.03745618]
[1747208674699,0.06962491,103680.0,103670.0,3.25841618]
[1747208674997,0.16352491,103680.0,103670.0,3.25841618]
[1747208676001,0.16352491,103680.0,103670.0,2.81609618]
[1747208676204,0.16352491,103680.0,103670.0,3.03701618]
[1747208679105,0.16352491,103680.0,103670.0,3.25797618]
[1747208684008,0.19898433,103700.0,103690.0,0.1928729]